bitfinex-derivatives/quotes_ETHF0:USTF0_20250518
["timestamp","ask_amount","ask_price","bid_price","bid_amount"]
[1747556888631,3.13843,2525.3,2524.9,5.35763]
[1747556888837,0.79178,2525.1,2525.0,1.2512]
[1747556889539,0.79182,2525.0,2524.9,44.0078]
[1747556889831,1.2724,2525.0,2524.9,44.0078]
[1747556891033,3.9995,2525.4,2525.1,0.79177]
[1747556891233,3.2078,2525.4,2525.2,2.6092]
[1747556891542,1.2484,2525.6,2525.2,5.817]
[1747556891743,1.2484,2525.6,2525.3,1.3269]
[1747556892042,1.2484,2525.6,2525.4,2.00867]
[1747556892241,1.2484,2525.6,2525.5,1.3269]
[1747556892641,3.29033,2525.6,2525.5,0.1237202]
[1747556894042,0.79181,2525.1,2524.9,3.2078]
[1747556894346,2.04212,2525.0,2524.9,3.2078]
[1747556895645,0.79188,2524.8,2524.7,40.8]
[1747556895846,0.79191,2524.7,2524.6,1.1914]
[1747556896048,0.79189,2524.8,2524.6,1.1914]
[1747556896241,2.15539,2524.8,2524.6,1.1914]
[1747556896440,2.15539,2524.8,2524.6,41.9914]
[1747556896646,1.3635,2524.8,2524.6,41.9914]
[1747556896951,8.696,2525.4,2524.8,0.79185]
[1747556897147,0.7918,2525.1,2524.8,0.79185]
[1747556897348,0.79182,2525.0,2524.9,1.3392]
[1747556897644,2.06892,2525.0,2524.9,1.3392]
[1747556897949,1.2771,2525.0,2524.9,1.3392]
[1747556898744,0.79177,2525.2,2524.9,1.3392]
[1747556898945,2.06887,2525.2,2524.9,1.3392]
[1747556899340,2.06887,2525.2,2524.9,2.13104]
[1747556900047,0.79179,2525.1,2524.9,1.3392]
[1747556900244,2.06888,2525.2,2524.9,2.5623]
[1747556900544,2.06887,2525.2,2524.9,3.35415]
[1747556901042,2.06887,2525.2,2524.9,2.5623]
[1747556901345,1.2771,2525.2,2525.0,0.79182]
[1747556901545,3.2078,2525.6,2525.0,1.2462]
[1747556901741,4.5502,2525.6,2525.0,5.16766117]
[1747556901942,4.5502,2525.6,2525.2,0.79174]
[1747556902141,0.79168,2525.5,2525.2,0.79175]
[1747556902338,1.3424,2525.4,2525.0,1.2462]
[1747556902738,1.3424,2525.4,2525.2,0.79174]
[1747556902943,1.3424,2525.4,2525.1,0.79177]
[1747556903152,0.79173,2525.3,2525.0,2.038]
[1747556903449,2.13416,2525.2,2525.0,1.2462]
[1747556904649,2.13416,2525.2,2524.8,10.68997]
[1747556904650,1.3424,2525.2,2524.8,10.68997]
[1747556904844,0.79181,2525.1,2524.9,0.79185]
[1747556905044,1.3111,2525.0,2524.9,2.08845]
[1747556905445,1.3111,2525.0,2524.9,1.2966]
[1747556905646,1.3111,2525.0,2524.9,2.08845]
[1747556906149,1.1923,2525.3,2524.9,1.42033967]
[1747556906353,2.10286,2525.2,2525.0,0.12373961]
[1747556906548,2.10286,2525.2,2525.1,0.12373961]
[1747556906549,1.3111,2525.2,2525.1,0.12373961]
[1747556906850,1.3111,2525.2,2525.1,0.91551961]
[1747556907054,1.3111,2525.2,2525.1,0.12373961]
[1747556907349,2.10285,2525.2,2525.1,0.12373961]
[1747556908053,0.79183,2525.0,2524.7,2.0435]
[1747556908347,1.2712,2524.9,2524.8,0.12375178]
[1747556908545,1.2712,2524.9,2524.8,0.12375121]
[1747556908747,1.2712,2524.9,2524.8,0.91563121]
[1747556909955,2.06305,2524.9,2524.8,0.12375121]
[1747556910154,2.06305,2524.9,2524.8,0.12375291]
[1747556911957,1.2712,2524.9,2524.8,0.1237654]
[1747556912157,2.06305,2524.9,2524.8,0.1237654]
[1747556912956,1.2712,2524.9,2524.8,0.1237654]
[1747556913159,1.2712,2524.9,2524.8,0.9156454]
[1747556913558,0.7918,2525.1,2524.9,0.79183]
[1747556913854,4.4001,2525.3,2525.0,0.1237654]
[1747556913855,2.12617,2525.2,2525.0,0.1237654]
[1747556914056,2.12617,2525.2,2525.1,0.1237654]
[1747556917657,0.79181,2525.1,2524.9,1.3583]
[1747556917853,1.3315,2525.0,2524.9,1.3583]
[1747556918052,1.98404,2525.3,2525.0,0.79179]
[1747556918255,0.79176,2525.2,2525.1,1.45845241]
[1747556918456,2.12326,2525.2,2525.1,1.45845241]
[1747556919158,1.3315,2525.2,2525.1,1.45845241]
[1747556919460,0.79166,2525.5,2525.2,0.79175]
[1747556919759,3.99944,2525.6,2525.3,3.40525241]
[1747556920062,1.3205,2525.7,2525.5,0.79166]
[1747556920357,2.1121,2525.7,2525.6,1.36625241]
[1747556920652,5.6594,2526.0,2525.6,1.36625241]
[1747556920858,2.11205,2525.9,2525.7,0.12375241]
[1747556921159,1.3205,2525.9,2525.8,0.12371536]
[1747556921461,1.97851,2526.4,2525.8,1.36621536]
[1747556921462,4.4614,2526.3,2525.8,1.36621536]
[1747556921759,0.79149,2526.1,2525.9,0.12371536]
[1747556921959,0.79149,2526.1,2526.0,0.12371536]
[1747556922460,3.2078,2526.3,2526.0,0.12371536]
[1747556922662,0.79139,2526.4,2526.1,2.18956536]
[1747556922854,0.79139,2526.4,2526.2,1.39811536]
[1747556923058,0.79136,2526.5,2526.3,0.12371536]
[1747556923261,0.79136,2526.5,2526.4,1.39811536]
[1747556924364,0.79136,2526.5,2526.4,0.12371536]
[1747556924552,0.7915,2526.0,2525.9,1.2744]
[1747556924861,0.7915,2526.0,2525.9,0.12369686]
[1747556926459,0.79153,2525.9,2525.8,1.16369827]
[1747556926655,3.99933,2525.9,2525.8,1.28741183]
[1747556926857,8.99933,2525.9,2525.8,1.28741183]
[1747556927168,8.99933,2525.9,2525.8,0.12371356]
[1747556928159,3.99933,2525.9,2525.8,0.12371356]
[1747556928360,0.79153,2525.9,2525.8,0.12371356]
[1747556928555,17.334,2526.0,2525.8,0.12371356]
[1747556928556,9.46752,2526.0,2525.8,0.12371356]
[1747556928763,9.46752,2526.0,2525.9,0.12371621]
[1747556929354,0.79155,2525.9,2525.6,0.79161]
[1747556929557,0.79155,2525.9,2525.7,2.1469]
[1747556929863,0.79155,2525.9,2525.7,1.3553]
[1747556930163,0.79156,2525.9,2525.7,1.3553]
[1747556930463,0.79157,2525.8,2525.7,1.3553]
[1747556930762,1.2169,2526.1,2525.7,1.3553]
[1747556930961,0.7915,2526.0,2525.7,1.3553]
[1747556931161,0.79153,2525.9,2525.8,1.1908]
[1747556932556,0.79166,2525.5,2525.4,2.29639827]
[1747556932861,0.79166,2525.5,2525.4,3.66179827]
[1747556933051,0.79166,2525.5,2525.4,2.52909827]
[1747556933360,0.79166,2525.5,2525.4,1.16369827]
[1747556933561,0.79166,2525.5,2525.4,1.13558364]
[1747556934767,0.79175,2525.2,2525.1,1.16369827]
[1747556934958,0.79175,2525.2,2525.1,2.42769827]
[1747556935857,0.79182,2525.0,2524.9,5.4771]
[1747556936058,2.5225,2525.1,2524.9,5.4771]
[1747556936358,3.31431,2525.1,2524.9,6.7411]
[1747556937162,0.79182,2525.0,2524.9,6.7411]
[1747556937361,0.79185,2524.9,2524.8,1.16369827]
[1747556937862,0.79185,2524.9,2524.8,1.13636721]
[1747556938257,1.2371,2525.1,2524.8,1.13636721]
[1747556938557,0.79182,2525.0,2524.9,1.3318]
[1747556939366,2.10342,2525.0,2524.9,1.3318]
[1747556940163,1.3116,2525.0,2524.9,1.3318]
[1747556940468,2.10342,2525.0,2524.9,1.3318]
[1747556940667,1.3116,2525.0,2524.9,1.3318]
[1747556941068,1.3116,2525.0,2524.9,3.706]
[1747556941267,1.3116,2525.0,2524.9,4.84218204]
[1747556941564,2.02891,2525.1,2524.9,4.84218204]
[1747556941770,0.79179,2525.1,2524.9,4.84218204]
[1747556942271,2.10826,2525.2,2524.9,4.49784]
[1747556942562,2.10826,2525.2,2525.0,0.79181]
[1747556942869,3.99952,2525.3,2525.1,2.03297]
[1747556943069,3.99952,2525.3,2525.2,1.3285]
[1747556943372,3.2078,2525.3,2525.2,2.12025]
[1747556943667,3.99952,2525.3,2525.2,1.3285]
[1747556944370,0.79182,2525.0,2524.9,3.53789827]
[1747556944570,0.79182,2525.0,2524.9,4.86639827]
[1747556944972,0.79182,2525.0,2524.9,6.0024862]
[1747556945269,1.94401,2525.1,2524.9,6.0024862]
[1747556946173,1.94399,2525.1,2524.9,6.0024862]
[1747556946471,1.94399,2525.1,2524.9,3.7027]
[1747556947166,0.79182,2525.0,2524.9,3.7027]
[1747556947372,0.79182,2525.0,2524.8,3.2078]
[1747556947373,0.79185,2524.9,2524.8,3.2078]
[1747556948564,5.79185,2524.9,2524.8,0.1237644]
[1747556948971,7.07225,2524.9,2524.8,0.1237644]
[1747556949671,0.79191,2524.7,2524.6,1.16369827]
[1747556949971,0.79191,2524.7,2524.6,1.28748347]
[1747556950271,0.79191,2524.7,2524.6,0.1237852]
[1747556950972,0.79197,2524.5,2524.4,0.792]
[1747556951165,0.79197,2524.5,2524.4,0.91578138]
[1747556951472,0.79197,2524.5,2524.4,0.12378138]
[1747556952876,2.15247,2524.5,2524.4,0.12378138]
[1747556953368,0.79218,2523.9,2523.7,4.38980827]
[1747556953566,2.15269,2523.8,2523.7,3.59759827]
[1747556953769,2.15269,2523.8,2523.7,4.38981827]
[1747556954062,2.15269,2523.8,2523.7,3.59759827]
[1747556955174,2.15269,2523.8,2523.7,2.4339]
[1747556957267,0.79222,2523.7,2523.6,1.1205]
[1747556957462,2.06032,2523.7,2523.6,1.1205]
[1747556958474,0.79229,2523.5,2523.4,1.3087]
[1747556958676,0.79229,2523.5,2523.4,2.5021]
[1747556958882,0.79232,2523.4,2523.3,4.37149827]
[1747556959176,0.79232,2523.4,2523.3,3.2078]
[1747556959474,0.79238,2523.2,2523.1,3.6062]
[1747556960471,2.14527,2523.3,2523.1,3.6062]
[1747556960677,1.3529,2523.3,2523.0,1.16369827]
[1747556961076,0.79241,2523.1,2523.0,1.16369827]
[1747556961273,0.7924,2523.2,2523.0,1.16369827]
[1747556961478,1.3529,2523.3,2523.0,2.45609827]
[1747556961673,3.2078,2523.5,2523.0,2.45609827]
[1747556961874,5.3244,2523.5,2523.1,4.42]
[1747556962076,5.3244,2523.5,2523.2,2.08477]
[1747556962271,5.3244,2523.5,2523.3,1.2924]
[1747556962579,5.3244,2523.5,2523.3,2.4736]
[1747556962878,0.79235,2523.3,2523.1,4.42]
[1747556963078,0.79234,2523.4,2523.2,2.4736]
[1747556963269,0.79234,2523.4,2523.3,1.2924]
[1747556963469,4.5321,2523.5,2523.3,1.2924]
[1747556963772,5.3244,2523.5,2523.3,1.2924]
[1747556964173,3.2078,2523.5,2523.3,2.08475]
[1747556964375,3.2078,2523.5,2523.3,1.2924]
[1747556964573,3.2078,2523.5,2523.3,2.08473]
[1747556964975,4.00009,2523.5,2523.3,1.2924]
[1747556965179,3.2078,2523.5,2522.8,1.13414855]
[1747556965476,0.79239,2523.2,2522.9,5.72853669]
[1747556965679,0.79241,2523.1,2523.0,0.12383814]
[1747556965884,2.16181,2523.1,2523.0,0.12383814]
[1747556966075,0.79244,2523.0,2522.9,1.13414855]
[1747556966271,2.16184,2523.0,2522.9,1.2579983]
[1747556966685,2.16184,2523.0,2522.9,0.12384975]
[1747556967587,1.183,2523.4,2522.9,0.12384975]
[1747556967787,0.79243,2523.1,2523.0,0.12384975]
[1747556967986,0.79244,2523.0,2522.9,1.2762]
[1747556968189,1.2705,2523.0,2522.9,1.40004524]
[1747556968386,1.183,2523.4,2522.9,2.19252524]
[1747556968686,0.79241,2523.1,2523.0,0.12384524]
[1747556968882,0.7924,2523.2,2523.0,0.12384524]
[1747556969180,0.7924,2523.2,2523.1,0.12384524]
[1747556969781,0.7924,2523.2,2523.1,1.34614524]
[1747556969982,0.7924,2523.2,2523.1,1.34614041]
[1747556970179,0.7924,2523.2,2523.1,0.12384041]
[1747556972588,4.0002,2523.2,2523.1,0.12384041]
[1747556974697,3.20515,2523.6,2523.1,0.12384041]
[1747556974698,3.15904616,2524.4,2523.1,13.75584041]
[1747556974897,1.3353,2525.2,2524.3,3.2078]
[1747556975099,1.3353,2525.2,2525.0,3.2078]
[1747556975298,1.3353,2525.2,2525.0,0.12384041]
[1747556975498,1.3353,2525.2,2525.0,0.12375459]
[1747556975804,5.1712077,2525.1,2525.0,0.12375459]
[1747556976897,6.4995077,2525.1,2525.0,0.12375459]
[1747556977504,6.4995077,2525.1,2525.0,0.12376297]
[1747556977703,2.5507,2525.1,2525.0,0.12376297]
[1747556978710,10.7585,2525.1,2524.4,3.2078]
[1747556979003,0.79183,2525.0,2524.4,3.2078]
[1747556979203,10.75016,2524.9,2524.4,3.2078]
[1747556979406,9.4319,2524.8,2524.4,3.2078]
[1747556979608,1.3283,2524.7,2524.4,3.2078]
[1747556979808,2.5403,2524.7,2524.4,3.2078]
[1747556981503,8.64,2524.6,2524.4,3.2078]
[1747556981703,1.3357,2524.5,2524.4,3.2078]
[1747556983312,1.3357,2524.5,2524.4,3.9998]
[1747556984113,1.3357,2524.5,2524.4,3.2078]
[1747556984609,1.3357,2524.5,2524.4,3.9998]
[1747556984911,1.3357,2524.5,2524.4,3.2078]
[1747556985109,1.3357,2524.5,2524.4,3.9998]
[1747556988912,1.2224,2525.1,2525.0,0.79182]
[1747556989311,8.64,2525.4,2525.3,0.79172]
[1747556989811,9.744,2525.6,2525.5,0.79166]
[1747556989812,1.118,2525.6,2525.5,0.79166]
[1747556990011,1.2424,2525.7,2525.6,0.79163]
[1747556990207,1.2424,2525.7,2525.6,2.07393]
[1747556990808,1.2424,2525.7,2525.6,2.19764853]
[1747556991003,1.118,2526.1,2526.0,0.7915]
[1747556991313,2.3604,2526.1,2526.0,4.12301853]
[1747556991502,1.2424,2526.1,2526.0,4.12301853]
[1747556991701,1.2424,2526.5,2526.4,0.79137]
[1747556991906,1.2424,2526.5,2526.4,4.12288853]
[1747556992102,1.2424,2526.5,2526.4,3.99917]
[1747556992305,1.2424,2526.5,2526.4,4.12285182]
[1747556994012,1.2424,2526.5,2526.3,0.79139]
[1747556995716,1.2424,2526.5,2526.4,0.79137]
[1747556997308,2.03375,2526.5,2526.3,0.7914]
[1747556997508,1.2424,2526.5,2526.3,0.7914]
[1747556998008,0.79142,2526.3,2526.1,3.2078]
[1747556998314,1.2807,2526.2,2526.1,3.99927]
[1747556998511,1.2807,2526.2,2526.1,4.12297]
[1747556998711,2.07214,2526.2,2526.1,3.3315]
[1747556999013,1.2807,2526.2,2526.1,4.12296895]
[1747556999615,2.07214,2526.2,2526.1,3.33149895]
[1747557000016,2.07214,2526.2,2526.1,3.2078]
[1747557000411,2.07214,2526.2,2526.1,3.33150093]
[1747557000614,2.07214,2526.2,2526.1,3.2078]
[1747557001318,2.07214,2526.2,2526.1,3.99927]
[1747557001514,0.79142,2526.3,2526.2,0.79144]
[1747557001819,0.7914,2526.3,2526.2,2.19671673]
[1747557002419,0.79138,2526.4,2526.3,0.79139]
[1747557002917,0.79141,2526.3,2526.2,2.07302]
[1747557003120,1.3553,2526.5,2526.4,0.79137]
[1747557003321,1.3553,2526.5,2526.3,0.79139]
[1747557003619,1.3553,2526.5,2526.3,0.79141]
[1747557003815,1.3553,2526.5,2526.2,2.07302]
[1747557004020,1.3553,2526.5,2526.3,0.12369111]
[1747557004223,1.3553,2526.5,2526.3,0.7914]
[1747557004420,1.3553,2526.5,2526.4,0.12369424]
[1747557004829,1.3553,2526.5,2526.4,4.12286424]
[1747557005215,3.2078,2527.0,2526.7,0.79125]
[1747557005419,1.2393,2526.9,2526.8,0.79125]
[1747557005621,9.8593,2526.9,2526.8,0.91492776]
[1747557006011,1.2393,2526.9,2526.8,0.91492776]
[1747557006216,1.2393,2527.2,2526.8,1.44247776]
[1747557006510,1.2393,2527.2,2527.0,0.79118]
[1747557006820,1.2393,2527.2,2527.1,0.12365585]
[1747557007119,18.4713,2527.2,2526.1,3.2078]
[1747557007313,0.79126,2526.8,2526.2,0.12367933]
[1747557007516,1.3378,2526.7,2526.6,0.79131]
[1747557007720,1.3378,2526.7,2526.6,0.91498933]
[1747557008227,1.3378,2526.7,2526.6,0.91498647]
[1747557008618,1.13,2527.0,2526.6,0.12367647]
[1747557008824,2.4678,2527.0,2526.9,0.79122]
[1747557009019,2.4678,2527.0,2526.9,0.91489647]
[1747557009323,1.92107,2527.4,2527.2,0.7911]
[1747557009524,19.15207,2527.4,2527.2,0.7911]
[1747557009721,1.13,2527.4,2527.3,0.79109]
[1747557009916,1.92106,2527.4,2527.0,4.5377]
[1747557010122,1.92106,2527.4,2527.2,0.79112]
[1747557010318,1.13,2527.4,2527.1,0.79113]
[1747557010517,0.79112,2527.3,2527.2,0.12365316]
[1747557010718,0.79132,2526.6,2526.3,3.2078]
[1747557011020,0.79133,2526.6,2526.4,1.49236942]
[1747557011222,0.79126,2526.8,2526.5,0.79132]
[1747557011421,0.79129,2526.7,2526.5,0.79132]
[1747557011620,2.13489,2526.7,2526.5,0.79132]
[1747557012022,1.3436,2526.7,2526.3,3.2078]
[1747557012226,0.79135,2526.5,2526.3,3.99919]
[1747557012427,1.3436,2526.4,2526.3,3.99919]
[1747557012823,1.88817,2526.8,2526.6,0.79128]
[1747557013026,1.88817,2526.8,2526.7,0.79128]
[1747557013227,1.88815,2526.8,2526.6,3.99909]
[1747557013430,1.88815,2526.8,2526.7,1.279]
[1747557013724,1.0969,2526.8,2526.3,3.2078]
[1747557013934,0.79135,2526.5,2526.4,0.79136]
[1747557014126,0.79135,2526.5,2526.4,2.07036]
[1747557014832,0.79133,2526.6,2526.4,2.07035]
[1747557015033,1.3364,2526.7,2526.5,0.79134]
[1747557015330,2.12768,2526.7,2526.6,1.279]
[1747557015735,2.12768,2526.7,2526.0,3.2078]
[1747557015736,0.79147,2526.1,2526.0,3.2078]
[1747557015928,0.7915,2526.0,2525.4,2.32739654]
[1747557016126,10.5409,2526.0,2525.4,2.32739654]
[1747557016430,10.5409,2526.0,2525.5,1.1445139]
[1747557016431,0.79162,2525.6,2525.5,1.1445139]
[1747557016630,9.40962,2525.6,2525.5,1.1445139]
[1747557017026,10.71422,2525.6,2525.5,1.1445139]
[1747557017428,12.54682,2525.6,2525.5,1.1445139]
[1747557017628,13.33844,2525.6,2525.5,1.1445139]
[1747557017831,0.79172,2525.3,2525.2,1.16369827]
[1747557018031,9.40072,2525.3,2525.2,1.16369827]
[1747557018831,10.70532,2525.3,2525.2,1.16369827]
[1747557019328,9.9136,2525.3,2525.0,3.2078]
[1747557019639,0.792,2524.4,2524.3,1.16369827]
[1747557020331,2.0755,2524.4,2524.3,1.24292815]
[1747557020728,2.0755,2524.4,2524.3,0.07922988]
[1747557021036,19.3035,2524.4,2524.3,0.07922988]
[1747557021632,19.2955,2524.4,2524.3,0.07922988]
[1747557023937,24.2955,2524.4,2524.3,0.07922988]
[1747557024427,24.2955,2524.4,2524.3,9.88e-06]
[1747557025038,0.79206,2524.2,2524.1,4.1598]
[1747557025334,3.99986,2524.2,2524.1,0.9904]
[1747557025637,10.18802,2524.2,2523.3,3.2078]
[1747557025839,3.2078,2523.8,2523.2,1.3677]
[1747557026138,0.79233,2523.4,2523.3,0.12383966]
[1747557026338,0.7923,2523.5,2523.3,2.28387966]
[1747557026538,10.65684,2523.7,2523.4,0.7923]
[1747557026838,0.79221,2523.8,2523.6,0.79225]
[1747557027134,0.79221,2523.8,2523.7,1.3677]
[1747557027331,18.01714,2524.0,2523.8,0.79217]
[1747557027532,17.225,2524.0,2523.9,2.15986]
[1747557028034,18.01713,2524.0,2523.9,1.3677]
[1747557028340,9.40613,2524.0,2523.9,1.3677]
[1747557028934,8.614,2524.0,2523.9,2.15986]
[1747557029133,9.40613,2524.0,2523.9,1.3677]
[1747557029931,0.79213,2524.0,2523.9,1.3677]
[1747557030332,3.2078,2524.2,2523.7,0.9906]
[1747557030533,8.615,2524.1,2523.9,0.79213]
[1747557030737,10.68749,2524.1,2524.0,1.2773]
[1747557030936,2.07249,2524.1,2524.0,1.2773]
[1747557031634,0.79208,2524.2,2524.0,2.06941]
[1747557031834,8.615,2524.2,2524.0,1.2773]
[1747557032041,19.32159,2524.2,2524.0,2.0694]
[1747557032538,0.79219,2523.8,2523.7,0.9906]
[1747557032844,0.79219,2523.8,2523.4,2.6649]
[1747557032845,0.79228,2523.5,2523.4,2.6649]
[1747557033140,0.79228,2523.5,2523.4,1.3225]
[1747557033643,0.79239,2523.2,2523.0,3.2078]
[1747557033841,2.09483,2523.4,2523.1,0.79238]
[1747557034044,1.1197,2523.6,2523.0,4.00022]
[1747557034343,0.79237,2523.3,2523.0,4.00022]
[1747557034536,1.1197,2523.6,2523.0,3.2078]
[1747557035141,1.98071,2523.5,2523.0,3.2078]
[1747557035343,0.79241,2523.1,2523.0,3.2078]
[1747557035540,0.79241,2523.1,2523.0,4.1986]
[1747557039143,0.79241,2523.1,2523.0,3.2078]
[1747557039343,2.06231,2523.1,2523.0,3.2078]
[1747557042446,10.67431,2523.1,2523.0,3.2078]
[1747557043553,10.67431,2523.1,2522.8,4.8258]
[1747557043554,0.79247,2522.9,2522.8,3.6441]
[1747557044352,2.08267,2522.9,2522.8,3.6441]
[1747557044549,2.08267,2522.9,2522.8,3.76797686]
[1747557045054,2.08267,2522.9,2522.8,3.76797676]
[1747557046550,19.31367,2522.9,2522.8,3.76797676]
[1747557047951,24.31367,2522.9,2522.8,3.76797676]
[1747557048553,24.31367,2522.9,2522.8,5.97e-06]
[1747557048760,24.31367,2522.9,2522.3,2.4007]
[1747557048761,0.79263,2522.4,2522.3,2.4007]
[1747557049054,9.41163,2522.4,2522.3,2.4007]
[1747557049456,10.73743,2522.4,2522.3,2.4007]
[1747557050256,0.79272,2522.1,2522.0,3.2078]
[1747557050459,0.7928,2521.9,2521.7,4.4548]
[1747557050650,0.7928,2521.9,2521.8,4.478]
[1747557050854,3.2078,2522.8,2521.8,4.478]
[1747557051151,1.98002,2524.4,2523.6,0.79224]
[1747557051354,3.2078,2524.3,2523.7,3.6353]
[1747557051557,4.4504,2524.3,2523.7,3.6353]
[1747557051757,3.2078,2524.0,2523.7,0.5345]
[1747557052049,0.79219,2523.8,2523.7,0.5345]
[1747557052255,18.37119,2523.8,2523.7,0.5345]
[1747557052455,23.37119,2523.8,2523.7,0.5345]
[1747557052657,1.2579,2523.8,2523.7,0.5345]
[1747557053456,23.8559,2523.8,2523.7,0.5345]
[1747557053654,24.64809,2523.8,2523.7,0.5345]
[1747557054055,18.8559,2523.8,2523.2,1.2507]
[1747557054259,10.0409,2523.8,2523.2,1.2507]
[1747557054457,8.783,2523.8,2523.4,3.2078]
[1747557054656,8.783,2524.1,2523.5,2.4413]
[1747557054964,8.783,2524.1,2523.7,3.2078]
[1747557055156,8.783,2524.1,2523.8,2.04288]
[1747557055657,8.783,2524.1,2523.8,1.2507]
[1747557055957,10.1525,2524.1,2523.8,1.2507]
[1747557056353,10.1525,2524.1,2523.8,1.7851]
[1747557056750,0.79214,2524.0,2523.8,0.5344]
[1747557057057,1.3695,2523.9,2523.8,0.5344]
[1747557058067,13.1877,2524.3,2524.1,0.79208]
[1747557058264,4.5773,2524.7,2524.4,0.792]
[1747557058561,4.5773,2524.7,2524.4,0.79198]
[1747557058763,4.5773,2524.7,2524.5,2.04835]
[1747557059171,8.782,2524.8,2524.6,0.79192]
[1747557059371,8.782,2524.8,2524.7,1.2564]
[1747557059669,8.782,2524.8,2524.7,2.04831]
[1747557059972,10.1498,2525.0,2524.9,0.79184]
[1747557060162,8.782,2525.0,2524.9,0.79184]
[1747557060666,3.2078,2525.4,2524.9,0.12376334]
[1747557060868,3.2078,2525.4,2525.1,0.79176]
[1747557061063,4.5756,2525.4,2525.2,1.38016334]
[1747557061271,1.3678,2525.4,2525.3,0.12376334]
[1747557062372,3.2078,2525.8,2525.7,0.79159]
[1747557062672,1.3345,2525.9,2525.8,0.79156]
[1747557062864,1.3345,2525.9,2525.8,2.15188565]
[1747557063061,3.2078,2526.5,2525.8,1.36032565]
[1747557063379,1.3345,2526.2,2526.1,0.79147]
[1747557063869,17.563,2526.5,2526.4,0.79137]
[1747557064174,1.3345,2526.5,2526.4,0.79137]
[1747557064468,26.63,2526.7,2526.6,0.79131]
[1747557064676,17.56,2526.7,2526.6,0.79131]
[1747557064868,1.3319,2527.1,2526.4,5.18624]
[1747557065170,0.79135,2526.5,2526.3,1.2489]
[1747557065366,1.3319,2526.4,2526.3,1.2489]
[1747557065564,1.3319,2526.4,2526.3,2.0403]
[1747557065874,8.778,2526.8,2526.4,0.79137]
[1747557066170,0.79135,2526.5,2526.0,5.15869]
[1747557066370,1.3319,2526.4,2526.1,1.2489]
[1747557066571,2.12328,2526.4,2526.1,1.2489]
[1747557066768,1.3319,2526.4,2526.1,1.2489]
[1747557066970,0.79145,2526.2,2526.0,4.3672]
[1747557067170,4.5397,2526.1,2525.4,3.2078]
[1747557067474,3.99947,2525.5,2525.3,1.2489]
[1747557067772,1.3319,2525.4,2525.3,1.2489]
[1747557068072,0.79172,2525.3,2525.2,1.1612]
[1747557068272,0.79181,2525.0,2524.9,1.3585]
[1747557068468,10.0804,2525.2,2524.7,0.79189]
[1747557068670,0.79179,2525.1,2524.7,1.3585]
[1747557068974,1.3044,2525.0,2524.7,2.1504]
[1747557069181,2.09621,2525.0,2524.8,1.3585]
[1747557069378,0.79184,2524.9,2524.8,1.3585]
[1747557069571,1.3044,2524.9,2524.8,1.3585]
[1747557069775,2.09624,2524.9,2524.8,1.3585]
[1747557069976,1.3044,2524.9,2524.8,1.3585]
[1747557070171,1.3044,2524.9,2524.6,1.1627]
[1747557070172,0.79191,2524.7,2524.6,1.1627]
[1747557070473,0.79194,2524.6,2524.5,1.3585]
[1747557070780,0.79197,2524.5,2524.4,3.2078]
[1747557072678,0.79197,2524.5,2524.3,2.0285]
[1747557072679,0.792,2524.4,2524.3,2.0285]
[1747557072873,10.8696,2524.4,2524.3,2.0285]
[1747557074183,19.6276,2524.4,2524.3,2.0285]
[1747557075177,24.6276,2524.4,2524.3,2.0285]
[1747557075875,24.6276,2524.4,2524.3,0.98193]
[1747557076178,24.6276,2524.4,2523.8,0.5344]
[1747557076179,0.79216,2523.9,2523.8,0.5344]
[1747557076370,21.52596,2523.9,2523.8,0.5344]
[1747557076972,21.52996,2523.9,2523.8,0.5344]
[1747557079979,21.50896,2523.9,2523.8,0.5344]
[1747557080778,3.99996,2523.9,2523.8,0.5344]
[1747557081082,21.50396,2523.9,2523.8,0.5344]
[1747557081273,1.3531,2524.1,2523.8,0.5344]
[1747557081472,0.79213,2524.0,2523.9,1.3105]
[1747557082282,0.79216,2523.9,2523.8,0.5344]
[1747557083585,0.79219,2523.8,2523.7,1.2805]
[1747557083784,2.10839,2523.8,2523.7,1.2805]
[1747557084285,11.99474,2523.8,2523.3,0.79234]
[1747557084480,0.7923,2523.5,2523.3,0.79234]
[1747557084680,17.427,2523.7,2523.4,1.2805]
[1747557084984,17.427,2523.7,2523.4,2.0728]
[1747557084985,18.7432,2523.7,2523.4,2.0728]
[1747557085578,0.79228,2523.5,2523.4,1.2805]
[1747557085785,17.417,2523.7,2523.6,0.79225]
[1747557085987,18.20922,2523.7,2523.6,0.79225]
[1747557086580,0.79225,2523.6,2523.5,0.5337]
[1747557086978,2.11125,2523.6,2523.5,0.5337]
[1747557088074,13.87125,2523.9,2523.5,0.5337]
[1747557088075,0.79224,2523.7,2523.5,0.5337]
[1747557088280,17.395,2523.7,2523.6,0.79225]
[1747557088480,18.18722,2523.7,2523.6,0.79225]
[1747557088675,18.18722,2523.7,2523.5,1.32596]
[1747557088886,17.395,2523.7,2523.5,1.32596]
[1747557089186,18.18724,2523.7,2523.5,1.32596]
[1747557089589,0.79225,2523.6,2523.5,0.5337]
[1747557089787,0.79225,2523.6,2523.5,1.32598]
[1747557091084,0.79225,2523.6,2523.5,0.5337]
[1747557092390,0.79225,2523.6,2523.5,1.32598]
[1747557093993,4.5268,2523.9,2523.5,0.5337]
[1747557094193,21.8688,2523.9,2523.5,0.5337]
[1747557094393,0.79225,2523.7,2523.6,0.79224]
[1747557094896,0.79225,2523.6,2523.5,1.32596]
[1747557095192,0.79225,2523.6,2523.5,0.5337]
[1747557095994,0.79225,2523.6,2523.5,1.32598]